fUSD/lending_fUSD_20250814
["ID","MTS","AMOUNT","RATE_DAILY","PERIOD"]
[379211108,1755189043886,-400.0,0.00027397,2]
[379211110,1755189043895,-400.0,0.00027397,2]
[379211111,1755189043904,-400.0,0.00027397,2]
[379211113,1755189043915,-400.0,0.00027397,2]
[379211115,1755189043924,-400.0,0.00027397,2]
[379211117,1755189043934,-569.3,0.00027397,2]
[379211119,1755189043943,-400.0,0.00027397,2]
[379211121,1755189043952,-387.881337,0.00027397,7]
[379211123,1755189043962,-387.881337,0.00027397,7]
[379211125,1755189043971,-400.0,0.00027397,2]
[379211127,1755189043980,-676.97,0.00027397,2]
[379211129,1755189043989,-2564.48,0.00027397,2]
[379211131,1755189044000,-400.0,0.00027397,2]
[379211133,1755189044010,-2892.35,0.00027397,2]
[379211135,1755189044020,-471.5,0.00027397,2]
[379211137,1755189044029,-400.0,0.00027397,2]
[379211139,1755189044039,-151.0,0.00027397,7]
[379211141,1755189044049,-151.0,0.00027397,7]
[379211143,1755189044059,-400.0,0.00027397,2]
[379211145,1755189044068,-151.0,0.00027397,7]
[379211147,1755189044078,-151.0,0.00027397,7]
[379211149,1755189044087,-400.0,0.00027397,2]
[379211151,1755189044096,-150.0,0.00027397,2]
[379211153,1755189044106,-288.039359,0.00027397,7]
[379211155,1755189044115,-400.0,0.00027397,2]
[379211157,1755189044125,-400.0,0.00027397,2]
[379211158,1755189044135,-288.039359,0.00027397,7]
[379211159,1755189044144,-818.37,0.00027397,2]
[379211160,1755189044156,-1020.18,0.00027397,2]
[379211161,1755189044167,-402.05,0.00027397,2]
[379211162,1755189044177,-400.0,0.00027397,2]
[379211163,1755189044189,-400.0,0.00027397,2]
[379211164,1755189044199,-400.0,0.00027397,2]
[379211165,1755189044209,-1722.28,0.00027397,2]
[379211166,1755189044218,-400.0,0.00027397,2]
[379211167,1755189044227,-434.4,0.00027397,2]
[379211169,1755189044237,-400.0,0.00027397,2]
[379211170,1755189044249,-2341.58,0.00027397,2]
[379211171,1755189044259,-400.82,0.00027397,2]
[379211172,1755189044268,-400.0,0.00027397,2]
[379211173,1755189044277,-1539.31,0.00027397,2]
[379211175,1755189044287,-540.27,0.00027397,2]
[379211177,1755189044296,-400.0,0.00027397,2]
[379211179,1755189044305,-400.0,0.00027397,2]
[379211181,1755189044314,-1417.08,0.00027397,2]
[379211183,1755189044324,-1083.5,0.00027397,2]
[379211185,1755189044333,-624.3,0.00027397,2]
[379211187,1755189044343,-430.99,0.00027397,2]
[379211189,1755189044353,-709.57,0.00027397,2]
[379211191,1755189044362,-576.39,0.00027397,2]
[379211193,1755189044372,-400.0,0.00027397,2]
[379211195,1755189044381,-400.0,0.00027397,2]
[379211197,1755189044391,-400.0,0.00027397,2]
[379211199,1755189044400,-400.0,0.00027397,2]
[379211201,1755189044411,-400.0,0.00027397,2]
[379211202,1755189044420,-400.0,0.00027397,2]
[379211203,1755189044429,-613.53,0.00027397,2]
[379211204,1755189044438,-1111.04,0.00027397,2]
[379211205,1755189044448,-400.0,0.00027397,2]
[379211206,1755189044459,-1888.02,0.00027397,2]
[379211207,1755189044469,-555.75,0.00027397,2]
[379211208,1755189044480,-400.0,0.00027397,2]
[379211210,1755189044489,-559.69,0.00027397,2]
[379211211,1755189044502,-400.0,0.00027397,2]
[379211212,1755189044511,-495.06,0.00027397,2]
[379211213,1755189044520,-2607.61,0.00027397,2]
[379211214,1755189044530,-1435.48,0.00027397,2]
[379211215,1755189044540,-1715.48,0.00027397,2]
[379211216,1755189044550,-500.0,0.00027397,2]
[379211217,1755189044560,-553.89617209,0.00027397,2]
[379211218,1755189044571,-400.0,0.00027397,2]
[379211219,1755189044580,-400.0,0.00027397,2]
[379211221,1755189044590,-864.4,0.00027397,2]
[379211223,1755189044599,-400.0,0.00027397,2]
[379211224,1755189044610,-454.05,0.00027397,2]
[379211226,1755189044619,-400.0,0.00027397,2]
[379211228,1755189044629,-339.05016506,0.00027397,2]
[379211230,1755189044638,-400.0,0.00027397,2]
[379211232,1755189044648,-400.0,0.00027397,2]
[379211234,1755189044657,-400.0,0.00027397,2]
[379211236,1755189044667,-400.0,0.00027397,2]
[379211238,1755189044676,-2132.8,0.00027397,2]
[379211240,1755189044686,-400.0,0.00027397,2]
[379211242,1755189044695,-400.0,0.00027397,2]
[379211244,1755189044704,-1170.18,0.00027397,2]
[379211246,1755189044714,-400.0,0.00027397,2]
[379211248,1755189044723,-400.0,0.00027397,2]
[379211250,1755189044732,-853.55,0.00027397,2]
[379211252,1755189044741,-400.0,0.00027397,2]
[379211254,1755189044751,-516.46,0.00027397,2]
[379211256,1755189044762,-815.1,0.00027397,2]
[379211258,1755189044771,-400.0,0.00027397,2]
[379211260,1755189044780,-809.63,0.00027397,2]
[379211262,1755189044792,-584.5,0.00027397,2]
[379211264,1755189044801,-824.93,0.00027397,2]
[379211265,1755189044812,-400.0,0.00027397,2]
[379211266,1755189044822,-3393.49,0.00027397,2]
[379211267,1755189044832,-400.0,0.00027397,2]
[379211268,1755189044841,-300.0,0.00027397,2]
[379211269,1755189044851,-400.0,0.00027397,2]
[379211270,1755189044860,-400.0,0.00027397,2]
[379211271,1755189044869,-400.0,0.00027397,2]
[379211272,1755189044879,-400.0,0.00027397,2]
[379211273,1755189044889,-400.0,0.00027397,2]
[379211274,1755189044899,-859.45,0.00027397,2]
[379211275,1755189044910,-497.69295575,0.00027397,2]
[379211276,1755189044919,-2601.46,0.00027397,2]
[379211277,1755189044928,-400.0,0.00027397,2]
[379211278,1755189044937,-400.0,0.00027397,2]
[379211279,1755189044947,-400.0,0.00027397,2]
[379211280,1755189044956,-3222.13,0.00027397,2]
[379211281,1755189044966,-400.0,0.00027397,2]
[379211282,1755189044975,-432.21,0.00027397,2]
[379211283,1755189044985,-400.0,0.00027397,2]
[379211284,1755189044997,-250.0,0.00027397,2]
[379211285,1755189045006,-400.0,0.00027397,2]
[379211286,1755189045016,-234.800075,0.00027397,7]
[379211288,1755189045026,-400.0,0.00027397,2]
[379211289,1755189045035,-400.0,0.00027397,2]
[379211290,1755189045044,-400.0,0.00027397,2]
[379211291,1755189045055,-491.04,0.00027397,2]
[379211292,1755189045065,-400.0,0.00027397,2]
[379211294,1755189045075,-234.800075,0.00027397,7]
[379211295,1755189045084,-400.0,0.00027397,2]
[379211296,1755189045095,-400.0,0.00027397,2]
[379211297,1755189045104,-1531.64,0.00027397,2]
[379211298,1755189045114,-741.3,0.00027397,2]
[379211299,1755189045124,-400.0,0.00027397,2]
[379211300,1755189045136,-400.0,0.00027397,2]
[379211301,1755189045287,-400.0,0.00027397,2]
[379211302,1755189045297,-500.0,0.00027397,2]
[379211303,1755189045306,-400.0,0.00027397,2]
[379211304,1755189045317,-500.0,0.00027397,2]
[379211305,1755189045327,-776.15,0.00027397,2]
[379211306,1755189045336,-400.0,0.00027397,2]
[379211307,1755189045346,-400.0,0.00027397,2]
[379211308,1755189045355,-400.0,0.00027397,2]
[379211309,1755189045366,-1822.96,0.00027397,2]
[379211310,1755189045375,-400.0,0.00027397,2]
[379211311,1755189045385,-1670.98,0.00027397,2]
[379211312,1755189045406,-400.0,0.00027397,2]
[379211313,1755189045416,-2366.09,0.00027397,2]
[379211314,1755189045431,-400.0,0.00027397,2]
[379211315,1755189045441,-606.32,0.00027397,2]
[379211316,1755189045452,-400.0,0.00027397,2]
[379211317,1755189045462,-1571.82,0.00027397,2]
[379211318,1755189045471,-400.0,0.00027397,2]
[379211319,1755189045499,-400.0,0.00027397,2]
[379211320,1755189045509,-726.15,0.00027397,2]
[379211321,1755189045518,-1070.62,0.00027397,2]
[379211322,1755189045527,-400.0,0.00027397,2]
[379211323,1755189045537,-777.74,0.00027397,2]
[379211324,1755189045547,-400.0,0.00027397,2]
[379211325,1755189045556,-400.0,0.00027397,2]
[379211326,1755189045566,-3140.26,0.00027397,2]
[379211327,1755189045575,-1260.69,0.00027397,2]
[379211328,1755189045585,-400.0,0.00027397,2]
[379211329,1755189045594,-400.0,0.00027397,2]
[379211330,1755189045603,-400.0,0.00027397,2]
[379211331,1755189045612,-615.24,0.00027397,2]
[379211332,1755189045622,-400.0,0.00027397,2]
[379211333,1755189045631,-400.0,0.00027397,2]
[379211334,1755189045640,-552.68,0.00027397,2]
[379211335,1755189045649,-1298.17,0.00027397,2]
[379211336,1755189045659,-730.62,0.00027397,2]
[379211337,1755189045668,-400.0,0.00027397,2]
[379211338,1755189045677,-1298.31,0.00027397,2]
[379211339,1755189045686,-845.85,0.00027397,2]
[379211340,1755189045695,-400.0,0.00027397,2]
[379211341,1755189045704,-1103.26,0.00027397,2]
[379211342,1755189045714,-1266.81,0.00027397,2]
[379211343,1755189045723,-1080.01,0.00027397,2]
[379211344,1755189045732,-160.87151463,0.00027397,2]
[379211345,1755189045744,-3293.43,0.00027397,2]
[379211346,1755189045754,-697.02,0.00027397,2]
[379211347,1755189045763,-2456.76,0.00027397,2]
[379211349,1755189045773,-975.02,0.00027397,2]
[379211351,1755189045783,-665.05,0.00027397,2]
[379211353,1755189045792,-400.0,0.00027397,2]
[379211354,1755189045802,-844.59,0.00027397,2]
[379211355,1755189045811,-794.43,0.00027397,2]
[379211356,1755189045821,-794.43,0.00027397,2]
[379211357,1755189045831,-794.43,0.00027397,2]
[379211358,1755189045840,-794.43,0.00027397,2]
[379211359,1755189045849,-859.08,0.00027397,2]
[379211361,1755189045859,-794.43,0.00027397,2]
[379211363,1755189045869,-794.43,0.00027397,2]
[379211364,1755189045879,-794.43,0.00027397,2]
[379211365,1755189045888,-794.43,0.00027397,2]
[379211366,1755189045897,-794.43,0.00027397,2]
[379211367,1755189045908,-794.43,0.00027397,2]
[379211368,1755189045917,-794.43,0.00027397,2]
[379211369,1755189045927,-400.0,0.00027397,2]
[379211371,1755189045936,-794.43,0.00027397,2]
[379211372,1755189045945,-794.43,0.00027397,2]
[379211373,1755189045954,-497.73,0.00027397,2]
[379211374,1755189045963,-794.43,0.00027397,2]
[379211375,1755189045973,-794.43,0.00027397,2]
[379211376,1755189045982,-794.43,0.00027397,2]
[379211377,1755189045995,-794.43,0.00027397,2]
[379211378,1755189046005,-400.0,0.00027397,2]
[379211379,1755189046015,-794.43,0.00027397,2]
[379211380,1755189046025,-2550.48,0.00027397,2]
[379211381,1755189046035,-400.0,0.00027397,2]
[379211382,1755189046044,-400.0,0.00027397,2]
[379211383,1755189046054,-514.53,0.00027397,2]
[379211384,1755189046065,-400.0,0.00027397,2]
[379211385,1755189046074,-400.0,0.00027397,2]
[379211386,1755189046083,-400.0,0.00027397,2]
[379211387,1755189046092,-400.0,0.00027397,2]
[379211388,1755189046102,-400.0,0.00027397,2]
[379211389,1755189046111,-400.0,0.00027397,2]
[379211390,1755189046120,-400.0,0.00027397,2]
[379211391,1755189046130,-400.0,0.00027397,2]
[379211392,1755189046139,-400.0,0.00027397,2]
[379211393,1755189046151,-953.92,0.00027397,2]
[379211394,1755189046160,-4924.43,0.00027397,2]
[379211395,1755189046174,-400.0,0.00027397,2]
[379211396,1755189046184,-400.0,0.00027397,2]
[379211397,1755189046193,-400.0,0.00027397,2]
[379211398,1755189046203,-1899.01,0.00027397,2]
[379211399,1755189046212,-456.38,0.00027397,2]
[379211400,1755189046223,-400.0,0.00027397,2]
[379211401,1755189046232,-400.0,0.00027397,2]
[379211402,1755189046244,-726.2,0.00027397,2]
[379211403,1755189046254,-400.0,0.00027397,2]
[379211404,1755189046263,-400.0,0.00027397,2]
[379211405,1755189046273,-400.0,0.00027397,2]
[379211406,1755189046282,-400.0,0.00027397,2]
[379211407,1755189046291,-400.0,0.00027397,2]
[379211408,1755189046300,-400.0,0.00027397,2]
[379211409,1755189046310,-2697.12,0.00027397,2]
[379211410,1755189046320,-3594.16,0.00027397,2]
[379211411,1755189046330,-987.62,0.00027397,2]
[379211412,1755189046339,-400.0,0.00027397,2]
[379211413,1755189046350,-400.0,0.00027397,2]
[379211414,1755189046359,-2348.58,0.00027397,2]
[379211415,1755189046369,-1873.37,0.00027397,2]
[379211416,1755189046379,-400.0,0.00027397,2]
[379211417,1755189046388,-2058.23,0.00027397,2]
[379211418,1755189046398,-2970.64,0.00027397,2]
[379211419,1755189046408,-400.0,0.00027397,2]
[379211420,1755189046417,-1775.2,0.00027397,2]
[379211421,1755189046427,-1729.42,0.00027397,2]
[379211422,1755189046437,-834.92,0.00027397,2]
[379211423,1755189046446,-400.0,0.00027397,2]
[379211424,1755189046470,-1299.04,0.00027397,2]
[379211425,1755189046479,-869.15,0.00027397,2]
[379211426,1755189046488,-433.79,0.00027397,2]
[379211427,1755189046502,-300.0,0.00027397,2]
[379211428,1755189046511,-1025.71,0.00027397,2]
[379211429,1755189046521,-400.0,0.00027397,2]
[379211430,1755189046530,-400.0,0.00027397,2]
[379211431,1755189046539,-400.0,0.00027397,2]
[379211432,1755189046549,-400.0,0.00027397,2]
[379211433,1755189046559,-400.0,0.00027397,2]
[379211434,1755189046568,-400.0,0.00027397,2]
[379211435,1755189046577,-1847.12,0.00027397,2]
[379211436,1755189046587,-400.0,0.00027397,2]
[379211437,1755189046597,-643.21,0.00027397,2]
[379211438,1755189046606,-400.0,0.00027397,2]
[379211439,1755189046616,-1089.63,0.00027397,2]
[379211440,1755189046625,-400.0,0.00027397,2]
[379211441,1755189046635,-400.0,0.00027397,2]
[379211442,1755189046644,-400.0,0.00027397,2]
[379211444,1755189046654,-400.0,0.00027397,2]
[379211445,1755189046663,-400.0,0.00027397,2]
[379211446,1755189046674,-547.53,0.00027397,2]
[379211447,1755189046684,-1088.61,0.00027397,2]
[379211448,1755189046693,-1095.49,0.00027397,2]
[379211449,1755189046703,-550.94,0.00027397,2]
[379211450,1755189046712,-566.73,0.00027397,2]
[379211451,1755189046722,-400.0,0.00027397,2]
[379211452,1755189046731,-774.62,0.00027397,2]
[379211453,1755189046740,-516.04,0.00027397,2]
[379211454,1755189046756,-1647.76,0.00027397,2]
[379211455,1755189046766,-584.2,0.00027397,2]
[379211456,1755189046776,-400.0,0.00027397,2]
[379211457,1755189046786,-3951.09,0.00027397,2]
[379211458,1755189046796,-400.0,0.00027397,2]
[379211459,1755189046806,-788.05,0.00027397,2]
[379211460,1755189046817,-662.75,0.00027397,2]
[379211461,1755189046826,-432.95,0.00027397,2]
[379211462,1755189046836,-697.06,0.00027397,2]
[379211463,1755189046846,-400.0,0.00027397,2]
[379211464,1755189046856,-2553.73,0.00027397,2]
[379211465,1755189046866,-400.0,0.00027397,2]
[379211466,1755189046876,-429.86,0.00027397,2]
[379211468,1755189046886,-400.0,0.00027397,2]
[379211470,1755189046895,-2027.68,0.00027397,2]
[379211472,1755189046904,-481.53,0.00027397,2]
[379211474,1755189046914,-628.67,0.00027397,2]
[379211476,1755189046923,-3005.82,0.00027397,2]
[379211478,1755189046933,-400.0,0.00027397,2]
[379211479,1755189046942,-400.0,0.00027397,2]
[379211482,1755189046951,-1121.17,0.00027397,2]
[379211483,1755189046961,-1544.382061,0.00027397,7]
[379211485,1755189046971,-402.80480812,0.00027397,2]
[379211487,1755189046980,-965.12,0.00027397,2]
[379211489,1755189046990,-2293.13,0.00027397,2]
[379211491,1755189047004,-1135.08,0.00027397,2]
[379211493,1755189047014,-400.0,0.00027397,2]
[379211495,1755189047023,-1544.382061,0.00027397,7]
[379211497,1755189047032,-400.0,0.00027397,2]
[379211499,1755189047042,-400.0,0.00027397,2]
[379211501,1755189047051,-428.06,0.00027397,2]
[379211503,1755189047061,-404.06,0.00027397,2]
[379211505,1755189047071,-400.0,0.00027397,2]
[379211507,1755189047080,-400.0,0.00027397,2]
[379211509,1755189047090,-400.0,0.00027397,2]
[379211511,1755189047099,-655.31,0.00027397,2]
[379211513,1755189047109,-400.0,0.00027397,2]
[379211515,1755189047118,-1511.13,0.00027397,2]
[379211517,1755189047129,-1805.47,0.00027397,2]
[379211519,1755189047138,-1365.82,0.00027397,2]
[379211521,1755189047148,-400.0,0.00027397,2]
[379211523,1755189047160,-1762.47,0.00027397,2]
[379211525,1755189047170,-2540.37,0.00027397,2]
[379211527,1755189047179,-400.0,0.00027397,2]
[379211529,1755189047189,-400.0,0.00027397,2]
[379211531,1755189047199,-400.0,0.00027397,2]
[379211533,1755189047208,-1884.81,0.00027397,2]
[379211535,1755189047218,-400.0,0.00027397,2]
[379211537,1755189047227,-400.0,0.00027397,2]
[379211538,1755189047238,-1696.46,0.00027397,2]
[379211539,1755189047251,-400.0,0.00027397,2]
[379211541,1755189047260,-400.0,0.00027397,2]
[379211543,1755189047270,-400.0,0.00027397,2]
[379211545,1755189047280,-400.0,0.00027397,2]
[379211547,1755189047290,-817.39,0.00027397,2]
[379211549,1755189047300,-557.54,0.00027397,2]
[379211551,1755189047309,-400.0,0.00027397,2]
[379211553,1755189047319,-203.18023176,0.00027397,2]
[379211555,1755189047328,-700.08,0.00027397,2]
[379211557,1755189047338,-1129.11,0.00027397,2]
[379211559,1755189047348,-405.089445,0.00027397,7]
[379211561,1755189047357,-400.0,0.00027397,2]
[379211563,1755189047367,-400.0,0.00027397,2]
[379211565,1755189047376,-422.2,0.00027397,2]
[379211567,1755189047386,-400.0,0.00027397,2]
[379211569,1755189047395,-400.0,0.00027397,2]
[379211571,1755189047404,-400.0,0.00027397,2]
[379211573,1755189047414,-405.089445,0.00027397,7]
[379211575,1755189047423,-400.0,0.00027397,2]
[379211577,1755189047432,-435.46,0.00027397,2]
[379211579,1755189047442,-2956.48,0.00027397,2]
[379211580,1755189047451,-740.63,0.00027397,2]
[379211582,1755189047461,-874.02,0.00027397,2]
[379211584,1755189047471,-2140.05,0.00027397,2]
[379211586,1755189047480,-1119.24,0.00027397,2]
[379211589,1755189047489,-1809.42,0.00027397,2]
[379211591,1755189047502,-400.0,0.00027397,2]
[379211593,1755189047511,-400.0,0.00027397,2]
[379211595,1755189047520,-1162.42,0.00027397,2]
[379211597,1755189047530,-400.0,0.00027397,2]
[379211598,1755189047539,-400.0,0.00027397,2]
[379211600,1755189047548,-400.0,0.00027397,2]
[379211603,1755189047557,-400.0,0.00027397,2]
[379211605,1755189047567,-404.93,0.00027397,2]
[379211607,1755189047576,-833.68,0.00027397,2]
[379211608,1755189047587,-1535.57,0.00027397,2]
[379211610,1755189047596,-892.5,0.00027397,2]
[379211612,1755189047605,-405.72067032,0.00027397,2]
[379211614,1755189047614,-400.0,0.00027397,2]
[379211616,1755189047624,-400.0,0.00027397,2]
[379211618,1755189047633,-400.0,0.00027397,2]
[379211620,1755189047642,-3429.64,0.00027397,2]
[379211622,1755189047651,-188.16334539,0.00027397,2]
[379211624,1755189047661,-400.0,0.00027397,2]
[379211626,1755189047670,-576.07,0.00027397,2]
[379211628,1755189047680,-400.0,0.00027397,2]
[379211630,1755189047689,-461.14,0.00027397,2]
[379211632,1755189047698,-400.0,0.00027397,2]
[379211634,1755189047707,-400.0,0.00027397,2]
[379211636,1755189047716,-1499.43,0.00027397,2]
[379211638,1755189047725,-400.0,0.00027397,2]
[379211640,1755189047734,-1920.64,0.00027397,2]
[379211642,1755189047746,-629.37,0.00027397,2]
[379211644,1755189047755,-400.0,0.00027397,2]
[379211646,1755189047765,-400.0,0.00027397,2]
[379211648,1755189047774,-986.66,0.00027397,2]
[379211650,1755189047784,-1533.73,0.00027397,2]
[379211652,1755189047793,-1996.63,0.00027397,2]
[379211654,1755189047803,-12000.0,0.00027397,7]
[379211656,1755189047813,-4072.43,0.00027397,2]
[379211658,1755189047822,-1022.56,0.00027397,2]
[379211660,1755189047831,-169.12713066,0.00027397,2]
[379211662,1755189047841,-400.0,0.00027397,2]
[379211664,1755189047850,-436.28,0.00027397,2]
[379211666,1755189047859,-400.0,0.00027397,2]
[379211668,1755189047869,-526.81,0.00027397,2]
[379211670,1755189047878,-12000.0,0.00027397,7]
[379211672,1755189047888,-400.0,0.00027397,2]
[379211674,1755189047898,-400.0,0.00027397,2]
[379211676,1755189047907,-400.0,0.00027397,2]
[379211678,1755189047916,-405.73368875,0.00027397,2]
[379211680,1755189047925,-400.0,0.00027397,2]
[379211682,1755189047935,-400.0,0.00027397,2]
[379211684,1755189047944,-400.0,0.00027397,2]
[379211686,1755189047953,-1694.06,0.00027397,2]
[379211688,1755189047962,-400.0,0.00027397,2]
[379211690,1755189047971,-3770.79,0.00027397,2]
[379211692,1755189047980,-12000.0,0.00027397,7]
[379211694,1755189047991,-400.0,0.00027397,2]
[379211696,1755189048004,-400.0,0.00027397,2]
[379211698,1755189048014,-2899.23,0.00027397,2]
[379211700,1755189048023,-3495.81,0.00027397,2]
[379211702,1755189048033,-400.0,0.00027397,2]
[379211704,1755189048043,-400.0,0.00027397,2]
[379211706,1755189048052,-400.0,0.00027397,2]
[379211708,1755189048062,-524.06,0.00027397,2]
[379211709,1755189048071,-2520.29,0.00027397,2]
[379211711,1755189048080,-400.0,0.00027397,2]
[379211713,1755189048090,-400.0,0.00027397,2]
[379211715,1755189048099,-4017.65,0.00027397,2]
[379211717,1755189048109,-3000.0,0.00027397,7]
[379211719,1755189048119,-400.0,0.00027397,2]
[379211721,1755189048129,-655.1,0.00027397,2]
[379211723,1755189048138,-400.0,0.00027397,2]
[379211724,1755189048148,-400.0,0.00027397,2]
[379211725,1755189048158,-496.6,0.00027397,2]
[379211726,1755189048169,-935.5,0.00027397,2]
[379211728,1755189048178,-400.0,0.00027397,2]
[379211730,1755189048188,-400.0,0.00027397,2]
[379211732,1755189048199,-956.29,0.00027397,2]
[379211734,1755189048208,-400.0,0.00027397,2]
[379211736,1755189048220,-1900.36,0.00027397,2]
[379211738,1755189048230,-561.69,0.00027397,2]
[379211740,1755189048240,-400.0,0.00027397,2]
[379211742,1755189048252,-437.74,0.00027397,2]
[379211744,1755189048262,-1600.15,0.00027397,2]
[379211746,1755189048271,-1989.37,0.00027397,2]
[379211748,1755189048281,-3437.48,0.00027397,2]
[379211750,1755189048291,-400.0,0.00027397,2]
[379211752,1755189048302,-3956.65,0.00027397,2]
[379211754,1755189048311,-645.49,0.00027397,2]
[379211756,1755189048321,-400.0,0.00027397,2]
[379211758,1755189048330,-2095.7,0.00027397,2]
[379211760,1755189048340,-1358.45,0.00027397,2]
[379211762,1755189048349,-433.23,0.00027397,2]
[379211764,1755189048358,-965.22,0.00027397,2]
[379211766,1755189048368,-400.0,0.00027397,2]
[379211768,1755189048378,-791.11,0.00027397,2]
[379211770,1755189048388,-738.98,0.00027397,2]
[379211772,1755189048398,-1949.62,0.00027397,2]
[379211774,1755189048407,-1136.33,0.00027397,2]
[379211776,1755189048416,-400.0,0.00027397,2]
[379211778,1755189048425,-2716.04,0.00027397,2]
[379211780,1755189048435,-400.0,0.00027397,2]
[379211782,1755189048444,-695.4719,0.00027397,7]
[379211784,1755189048453,-2005.66,0.00027397,2]
[379211786,1755189048463,-2285.15,0.00027397,2]
[379211788,1755189048472,-695.4719,0.00027397,7]
[379211790,1755189048483,-400.0,0.00027397,2]
[379211792,1755189048495,-2588.6,0.00027397,2]
[379211794,1755189048506,-452.78,0.00027397,2]
[379211796,1755189048516,-400.0,0.00027397,2]
[379211798,1755189048526,-828.83,0.00027397,2]
[379211800,1755189048536,-400.0,0.00027397,2]
[379211801,1755189048546,-405.1,0.00027397,2]
[379211802,1755189048555,-433.32,0.00027397,2]
[379211803,1755189048564,-2482.52,0.00027397,2]
[379211804,1755189048574,-400.0,0.00027397,2]
[379211805,1755189048583,-2938.82,0.00027397,2]
[379211806,1755189048593,-2755.83,0.00027397,2]
[379211807,1755189048602,-1155.12,0.00027397,2]
[379211808,1755189048611,-695.4719,0.00027397,7]
[379211809,1755189048620,-400.0,0.00027397,2]
[379211810,1755189048631,-695.4719,0.00027397,7]
[379211812,1755189048640,-400.0,0.00027397,2]
[379211813,1755189048650,-1028.92,0.00027397,2]
[379211815,1755189048659,-400.0,0.00027397,2]
[379211817,1755189048670,-400.0,0.00027397,2]
[379211820,1755189048679,-400.0,0.00027397,2]
[379211821,1755189048689,-2000.0,0.00027397,2]
[379211824,1755189048699,-3003.89,0.00027397,2]
[379211826,1755189048709,-400.0,0.00027397,2]
[379211828,1755189048718,-769.31,0.00027397,2]
[379211830,1755189048728,-400.0,0.00027397,2]
[379211831,1755189048737,-1039.17,0.00027397,2]
[379211833,1755189048748,-375.44904706,0.00027397,2]
[379211836,1755189048757,-400.0,0.00027397,2]
[379211837,1755189048767,-1449.08,0.00027397,2]
[379211839,1755189048777,-400.0,0.00027397,2]
[379211841,1755189048786,-6050.42,0.00027397,2]
[379211843,1755189048796,-621.89,0.00027397,2]
[379211845,1755189048806,-476.97666555,0.00027397,2]
[379211847,1755189048815,-2863.95,0.00027397,2]
[379211849,1755189048824,-561.68,0.00027397,2]
[379211851,1755189048833,-1015.59,0.00027397,2]
[379211852,1755189048842,-400.0,0.00027397,2]
[379211853,1755189048851,-400.0,0.00027397,2]
[379211854,1755189048861,-400.0,0.00027397,2]
[379211855,1755189048870,-400.0,0.00027397,2]
[379211856,1755189048879,-508.22,0.00027397,2]
[379211857,1755189048888,-400.0,0.00027397,2]
[379211858,1755189048898,-400.0,0.00027397,2]
[379211859,1755189048907,-400.0,0.00027397,2]
[379211860,1755189048918,-400.0,0.00027397,2]
[379211861,1755189048927,-4504.51,0.00027397,2]